Cogmind - Beta 9.2 @@@ ROGUE MODE // 2019.12.14 @ 23:46:11 Player: Exeight Result: Destroyed by G-47 Trooper with Particle Gun Performance ------------- Evolutions (2) 1000 Regions Visited (5) 1000 Robots Destroyed (38) 190 Value Destroyed (900) 900 Prototype IDs (28) 560 Alien Tech Used (0) 0 Bonus (300) 300 TOTAL SCORE: 3950 Bonus ------- Aligned with FarCom 300 Cogmind --------- Core Integrity 0/550 Matter 280/300 Energy 125/160 System Corruption 3% Temperature Cool (97) Movement Core (650) Ox12 Location -8/Materials Parts ------- > --- POWER (1) -------- Light Nuclear Core > --- PROPULSION (2) --- (None) > --- UTILITY (6) ------ Large Storage Unit Large Storage Unit > --- WEAPON (2) ------- (None) > --- INVENTORY (16) --- Ion Engine Light Nuclear Core VTOL Module Large Storage Unit Compact Matter Pod (150) Cloak of Protection Beam Rifle Spread Laser Light Assault Rifle Heavy Assault Rifle Minigun Improved Datajack Mining Laser Great Maul Peak State ------------ > --- POWER ------------ (None) > --- PROPULSION ------- Aluminum Leg Aluminum Leg > --- UTILITY ---------- Large Storage Unit Large Storage Unit Cloak of Protection Reflective Plating > --- WEAPON ----------- Minigun Minigun > --- INVENTORY -------- Ion Engine Ion Engine Aluminum Leg VTOL Module Large Storage Unit Compact Matter Pod Heavy Particle Cannon Ion Cannon Light Assault Rifle Improved Datajack Mining Laser Great Maul Great Maul [Rating: 23] Favorites ----------- Power Ion Engine Engine Ion Engine Power Core Light Nuclear Core Propulsion Aluminum Leg Leg Aluminum Leg Utility Large Storage Unit Device Cloak of Protection Storage Large Storage Unit Hackware Hacking Suite Protection Reflective Plating Weapon Minigun Energy Gun Small Laser Energy Cannon Ion Cannon Ballistic Gun Minigun Launcher Grenade Launcher Special Weapon Mining Laser Impact Weapon Great Maul Build | -11 -10 -10 -10 -9 -8 ------- Run | Scr Mat Min Exi Min Mat Slots Evolved 4 | . . . . . 4 Power . | . . . . . . Propulsion . | . . . . . . Utility 4 | . . . . . 4 Weapon . | . . . . . . Parts Attached 39 | 3 6 6 1 1 22 Power 4 | . 1 1 . . 2 Engine 3 | . 1 1 . . 1 Core 1 | . . . . . 1 Reactor . | . . . . . . Propulsion 8 | . 2 1 . . 5 Treads . | . . . . . . Leg 8 | . 2 1 . . 5 Wheel . | . . . . . . Hover . | . . . . . . Flight . | . . . . . . Utility 8 | 1 3 . 1 . 3 Device 2 | . . . 1 . 1 Storage 4 | 1 2 . . . 1 Processor . | . . . . . . Hackware 1 | . 1 . . . . Protection 1 | . . . . . 1 Artifact . | . . . . . . Weapon 19 | 2 . 4 . 1 12 Energy Gun 3 | . . 1 . . 2 Energy Cannon 3 | . . . . . 3 Ballistic Gun 8 | 2 . 1 . 1 4 Ballistic Cannon . | . . . . . . Launcher 1 | . . 1 . . . Special Weapon 1 | . . 1 . . . Impact Weapon 3 | . . . . . 3 Slashing Weapon . | . . . . . . Piercing Weapon . | . . . . . . Special Melee Weapon . | . . . . . . Unidentified Prototypes . | . . . . . . Parts Lost 23 | . . 6 . . 17 Power 3 | . . 1 . . 2 Propulsion 8 | . . 1 . . 7 Utility 1 | . . . . . 1 Weapon 11 | . . 4 . . 7 Highest Loss Streak 7 | . . 5 . . 7 Average Slot Usage (%) 81 | . 93 97 85 100 62 Engine 11 | . 14 14 14 14 6 Leg 22 | . 28 27 28 28 15 Device 1 | . . . . 14 1 Storage 14 | . 14 14 14 14 16 Hackware 5 | . 7 14 14 . . Protection 1 | . . . . . 4 Energy Cannon 1 | . . . . . 2 Ballistic Gun 13 | . 28 7 . 14 10 Special Weapon 4 | . . 6 14 14 2 Naked Turns . | . . . . . . Heaviest Build 50 | 7 22 24 30 31 50 Greatest Support 25 | 3 20 20 20 20 25 Greatest Overweight (x) 14 | 2 1 2 1 1 14 Average Overweight (x) 1 | 1 . 1 1 1 1 Largest Inventory Capacity 16 | 6 10 10 10 10 16 Average Capacity 11 | 5 7 10 10 10 15 Most Carried 16 | 5 10 10 7 6 16 Average Carried 9 | 3 6 7 6 5 13 Final Capacity 16 | 6 10 10 10 10 16 Final Carried 14 | 5 10 6 6 6 14 Class Distribution -------------------- 100% | Mutant Dominant Class ---------------- Mutant | -10/Materials Mutant | -10/Mines Mutant | -10/Exiles Mutant | -9/Mines Mutant | -8/Materials Resources | -11 -10 -10 -10 -9 -8 ----------- Run | Scr Mat Min Exi Min Mat Matter Collected 1227 | 230 222 75 . 36 664 Remotely . | . . . . . . Salvage Created 1290 | . 320 50 . . 920 Parts 62 | . 25 . . . 37 Haulers Intercepted 2 | . 2 . . . . Recyclers Shooed 1 | . . . . . 1 Parts Field Recycled . | . . . . . . Retrieved Matter . | . . . . . . Parts Self-Destructed . | . . . . . . Prevented . | . . . . . . Kills | -11 -10 -10 -10 -9 -8 ------- Run | Scr Mat Min Exi Min Mat Combat Hostiles Destroyed 29 | . 6 5 . . 18 Melee 1 | . . . . . 1 Guns 19 | . 6 4 . . 9 Cannons 7 | . . . . . 7 AOE 2 | . . 1 . . 1 Classes Destroyed 10 | . 6 2 . . 2 Worker 2 | . 1 . . . 1 Hauler 2 | . 2 . . . . Recycler 2 | . . . . . 2 Operator 2 | . 1 . . . 1 Watcher 1 | . 1 . . . . Swarmer 9 | . 3 . . . 6 Grunt 12 | . 3 . . . 9 Sentry 3 | . . . . . 3 Demolisher 1 | . . 1 . . . Assembled 4 | . . 4 . . . Best Kill Streak 5 | . 5 2 . . 3 Combat Bots Only 3 | . 2 2 . . 3 Max Kills in Single Turn 1 | . 1 1 . . 1 Gunslinging . | . . . . . . Exploded 1 | . . 1 . . 1 Melee 1 | . . . . . 1 Uniques/NPCs Destroyed . | . . . . . . Combat | -11 -10 -10 -10 -9 -8 -------- Run | Scr Mat Min Exi Min Mat Damage Taken 3175 | . 191 726 . . 2258 Core 738 | . 41 147 . . 550 Absorbed by Shields . | . . . . . . Core Remaining (%) 62 | 100 . . . 24 . Volleys Fired 124 | . 36 35 . . 53 Largest 2 | . 2 2 . . 2 Hottest 140 | . 40 140 . . 135 Shots Fired 201 | . 70 41 . . 90 Gun 167 | . 70 29 . . 68 Cannon 22 | . . . . . 22 Launcher 4 | . . 4 . . . Special 8 | . . 8 . . . Kinetic 146 | . 70 12 . . 64 Thermal 51 | . . 25 . . 26 Explosive 4 | . . 4 . . . Electromagnetic . | . . . . . . Robot Hit Streak 12 | . 6 8 . . 12 Robot Miss Streak 7 | . 3 4 . . 7 Penetration Max . | . . . . . . Secondary Targets . | . . . . . . Shots Hit Robots 140 | . 39 17 . . 84 Core Hits 61 | . 17 13 . . 31 Critical Hits 1 | . . . . . 1 Critical Kills . | . . . . . . Critical Parts Destroyed 1 | . . . . . 1 Melee Attacks 36 | . . . . . 36 Impact 36 | . . . . . 36 Slashing . | . . . . . . Piercing . | . . . . . . Sneak Attacks 4 | . . . . . 4 Combat Hostiles 1 | . . . . . 1 Follow-up Attacks . | . . . . . . Damage Inflicted 2858 | . 428 259 . . 2171 Guns 1294 | . 428 205 . . 661 Cannons 382 | . . . . . 382 Explosions 145 | . . 54 . . 91 Melee 1037 | . . . . . 1037 Ramming . | . . . . . . Kinetic 1109 | . 428 87 . . 594 Thermal 658 | . . 118 . . 540 Explosive 54 | . . 54 . . . Electromagnetic . | . . . . . . Impact 1037 | . . . . . 1037 Slashing . | . . . . . . Piercing . | . . . . . . Highest Corruption 7 | . 6 7 7 7 3 Average Corruption 6 | . 5 6 7 7 1 Corruption Purged . | . . . . . . Effects 45 | . 16 11 12 5 1 Message Errors 6 | . 5 1 . . . Matter Fused 17 | . 3 4 9 1 . Heat Flow Errors 4 | . 4 . . . . Energy Discharges 10 | . 2 2 3 3 . Data Loss (minor) 2 | . . 1 . 1 . Data Loss (major) 1 | . . 1 . . . Targeting Errors 3 | . . 2 . . 1 Weapon Failures 2 | . 2 . . . . Overload Shots . | . . . . . . Overflow Damage 224 | . . . . . 224 Projectiles 14 | . . . . . 14 Explosions . | . . . . . . Melee 210 | . . . . . 210 Knockbacks 6 | . . . . . 6 Impact 5 | . . . . . 5 Kinetic . | . . . . . . Secondary 1 | . . . . . 1 Self-Inflicted Damage 172 | . . 23 . . 149 Shots 4 | . . 2 . . 2 Rammed . | . . . . . . Targets Rammed . | . . . . . . Kicked . | . . . . . . Crushed . | . . . . . . Highest Temperature 245 | . 245 80 . . 189 Average Temperature 53 | . 87 20 . . 51 Received Heat Transfer 912 | . 30 . . . 882 Siege Activations . | . . . . . . Robots Corrupted . | . . . . . . Combat Hostiles . | . . . . . . Parts Fried 6 | . . . . . 6 Impact Corruptions 10 | . . . . . 10 Robots Melted . | . . . . . . Combat Hostiles . | . . . . . . Parts Melted . | . . . . . . Heat Transferred 1065 | . . 275 . . 790 Parts Sabotaged . | . . . . . . Parts Stolen . | . . . . . . Parts Stripped . | . . . . . . Power Chain Reactions . | . . . . . . Missiles Intercepted . | . . . . . . Alert | -11 -10 -10 -10 -9 -8 ------- Run | Scr Mat Min Exi Min Mat Peak Influence 248 | . 168 20 . . 248 Average Influence 68 | . 77 . . . 97 Maximum Alert Level 1 | . . . . . 1 Low Security (%) 94 | 100 100 100 . 100 88 Level 1 5 | . . . . . 11 Level 2 . | . . . . . . Level 3 . | . . . . . . Level 4 . | . . . . . . Level 5 . | . . . . . . High Security . | . . . . . . Max Security . | . . . . . . Squads Dispatched 6 | . 2 . . . 4 Investigation 2 | . 1 . . . 1 Extermination . | . . . . . . Reinforcement 3 | . 1 . . . 2 Assault . | . . . . . . Garrison 1 | . . . . . 1 Intercept . | . . . . . . Construction Impeded . | . . . . . . Haulers Reinforced . | . . . . . . Stealth | -11 -10 -10 -10 -9 -8 --------- Run | Scr Mat Min Exi Min Mat Distress Signals 2 | . 1 . . . 1 Communications Jammed . | . . . . . . Distress Signals . | . . . . . . Times Spotted 78 | . 18 19 . . 41 Peak Tracking Total 10 | . 4 10 . . 6 Tactical Retreats 16 | . 1 2 . . 13 Traps | -11 -10 -10 -10 -9 -8 ------- Run | Scr Mat Min Exi Min Mat Traps Triggered 5 | . 4 . . . 1 Indirectly . | . . . . . . Trap Hack Attempts . | . . . . . . Triggered . | . . . . . . Disarmed . | . . . . . . Reprogrammed . | . . . . . . Reused . | . . . . . . Traps Extracted . | . . . . . . Installed . | . . . . . . Triggered 1 | . . . . . 1 Machines | -11 -10 -10 -10 -9 -8 ---------- Run | Scr Mat Min Exi Min Mat Machines Disabled 2 | . . . . . 2 Max in Single Turn 2 | . . . . . 2 Machines Sabotaged . | . . . . . . Garrisons Compromised . | . . . . . . Overloaded Fab Kills . | . . . . . . Fab Network Shutdowns . | . . . . . . Hacking | -11 -10 -10 -10 -9 -8 --------- Run | Scr Mat Min Exi Min Mat Machines Accessed 9 | . 5 . 2 . 2 Terminals 6 | . 4 . . . 2 Fabricators . | . . . . . . Repair Stations . | . . . . . . Recycling Units 1 | . 1 . . . . Scanalyzers . | . . . . . . Garrison Access . | . . . . . . Total Hacks 19 | . 7 . 8 . 4 Successful 15 | . 5 . 8 . 2 Failed 4 | . 2 . . . 2 Catastrophic . | . . . . . . Database Lockouts . | . . . . . . Manual 2 | . . . 2 . . Terminals 9 | . 5 . . . 4 Fabricators . | . . . . . . Repair Stations . | . . . . . . Recycling Units 2 | . 2 . . . . Scanalyzers . | . . . . . . Garrison Access . | . . . . . . Terminal Hacks 15 | . 5 . 8 . 2 Record 7 | . . . 7 . . Prototype ID Bank 4 | . 3 . . . 1 Emergency Access Points 2 | . 1 . . . 1 Zone Layout 1 | . 1 . . . . EX-Prototype ID Bank 1 | . . . 1 . . Fabricator Hacks . | . . . . . . Repair Station Hacks . | . . . . . . Recycling Unit Hacks . | . . . . . . Scanalyzer . | . . . . . . Garrison Access Hacks . | . . . . . . Unauthorized Hacks . | . . . . . . Terminals . | . . . . . . Fabricators . | . . . . . . Repair Stations . | . . . . . . Recycling Units . | . . . . . . Scanalyzers . | . . . . . . Garrison Access . | . . . . . . Data Cores Recovered . | . . . . . . Used . | . . . . . . Hacking Detections 3 | . 1 . . . 2 Full Trace Events . | . . . . . . Feedback Events . | . . . . . . Feedback Blocked . | . . . . . . Robot Schematics Acquired . | . . . . . . Robots Built . | . . . . . . Matter . | . . . . . . Time . | . . . . . . Total Robot Build Rating . | . . . . . . Part Schematics Acquired . | . . . . . . Parts Built . | . . . . . . Matter . | . . . . . . Time . | . . . . . . Total Part Build Rating . | . . . . . . Parts Repaired . | . . . . . . Time . | . . . . . . Parts Recycled . | . . . . . . Recycled Matter . | . . . . . . Retrieved Matter . | . . . . . . Retrieved Components . | . . . . . . Parts Scanalyzed . | . . . . . . Part Schematics Acquired . | . . . . . . Parts Damaged . | . . . . . . Bothacking | -11 -10 -10 -10 -9 -8 ------------ Run | Scr Mat Min Exi Min Mat Used RIF Installer . | . . . . . . Robots Hacked . | . . . . . . Non-combat . | . . . . . . Combat . | . . . . . . Robot Hacks Applied . | . . . . . . Relay Couplers Released . | . . . . . . Robots Rewired . | . . . . . . Allies Hacked . | . . . . . . Hacks Repelled . | . . . . . . Allies | -11 -10 -10 -10 -9 -8 -------- Run | Scr Mat Min Exi Min Mat Total Allies . | . . . . . . Largest Group . | . . . . . . Highest-Rated Group . | . . . . . . Highest-Rated Ally . | . . . . . . Total Orders . | . . . . . . Ally Attacks . | . . . . . . Total Damage . | . . . . . . Kills . | . . . . . . Allies Corrupted . | . . . . . . Allies Melted . | . . . . . . Intel | -11 -10 -10 -10 -9 -8 ------- Run | Scr Mat Min Exi Min Mat Robot Analysis Total . | . . . . . . Derelict Logs Recovered 2 | . . 1 . 1 . Drone Launches . | . . . . . . Drone Recoveries . | . . . . . . Exploration | -11 -10 -10 -10 -9 -8 ------------- Run | Scr Mat Min Exi Min Mat Turns Passed 3734 | 59 1009 426 584 244 1412 Spaces Moved 1991 | 35 664 218 388 160 526 Core 38 | 35 . . . . 3 Treads . | . . . . . . Legs 1953 | . 664 218 388 160 523 Wheels . | . . . . . . Hover . | . . . . . . Flight . | . . . . . . Fastest Speed 50 | 50 120 120 150 150 150 Average Speed 151 | 141 134 150 150 150 175 Slowest Speed 750 | 150 150 180 150 150 750 Overloaded Moves . | . . . . . . Propulsion Burnouts . | . . . . . . Robots Hopped . | . . . . . . Cave-ins Triggered 1 | . . 1 . . . Exploration Rate (%) 49 | 3 84 37 88 47 37 Regions Visited 5 Branch Regions 3 Pre-discovered Areas 1 | . . . . 1 . Known Exits Taken . | . . . . . . Unknown Exits Taken 5 | 1 1 1 1 1 . Scrap Searched 1 | . . . . 1 . Spaces Dug 6 | . . 6 . . . Terrain Destroyed 75 | . . 30 . . 45 Melee . | . . . . . . Projectile 7 | . . 7 . . . AOE 68 | . . 23 . . 45 Actions | -11 -10 -10 -10 -9 -8 --------- Run | Scr Mat Min Exi Min Mat Total 2442 | 45 718 259 390 164 866 Wait 207 | . . . . 3 204 Move 1985 | 34 663 216 387 159 526 Hop . | . . . . . . Pick Up 43 | 8 10 1 1 1 22 Fast Attach 1 | . 1 . . . . Attach 28 | 3 3 5 1 1 15 Detach 2 | . . . . . 2 Swap 10 | . 2 1 . . 7 Drop 5 | . 3 . 1 . 1 Fire 124 | . 36 35 . . 53 Melee 36 | . . . . . 36 Ram . | . . . . . . Kick . | . . . . . . Crush . | . . . . . . Escape Stasis 1 | . . 1 . . . Rewire . | . . . . . . Trap . | . . . . . . Miscellaneous . | . . . . . . Route ------- -11/Scrapyard -10/Materials (discovered 4 exits: [*Mat x3] / [*Min]) -10/Mines (discovered 3 exits: [*Mat x2] / *Exi) -10/Exiles -9/Mines -8/Materials (discovered 1 exit: [*Fac]) History --------- Turn | Location | Event 19 | -11/Scrapyard | Discovered new exit (range 15) 60 | -11/Scrapyard | Entered Materials 207 | -10/Materials | Discovered new exit (range 4) 311 | -10/Materials | Build established: Mutant 367 | -10/Materials | Discovered new exit (range 3) 674 | -10/Materials | Discovered new exit (range 16) 942 | -10/Materials | Discovered new exit (range 9) 1069 | -10/Materials | Entered Mines 1090 | -10/Mines | Learned Materials emergency access door positions 1208 | -10/Mines | Assembled infested the area 1311 | -10/Mines | Lost 5 parts (1p1n3w) 1353 | -10/Mines | Core integrity fell below 50% 1395 | -10/Mines | Discovered new exit (range 10) 1407 | -10/Mines | Discovered new exit (range 13) 1482 | -10/Mines | Deemed a non-threat by the Exiles lab entrance 1482 | -10/Mines | Discovered new exit (range 7) 1487 | -10/Mines | Crushed by falling debris 1495 | -10/Mines | Entered Exiles 1533 | -10/Exiles | Met 8R-AWN 1558 | -10/Exiles | Met EX-HEX 1605 | -10/Exiles | Met EX-BIN 1621 | -10/Exiles | Aligned with FarCom system 1623 | -10/Exiles | Given EX-Vault access code 1657 | -10/Exiles | Opened EX-Vault 1668 | -10/Exiles | Found Cloak of Protection 1699 | -10/Exiles | Warned to stay clear of 0b10 Research branches 1744 | -10/Exiles | Met EX-DEC 1806 | -10/Exiles | Visited The Gauntlet 2059 | -10/Exiles | Discovered new exit (range 14) 2079 | -10/Exiles | Left Exiles lab with Cloak of Protection 2079 | -10/Exiles | Entered Mines 2085 | -9/Mines | Met a Derelict bent on vengeance 2113 | -9/Mines | Learned location of Zion (-7) 2242 | -9/Mines | Discovered new exit (range 10) 2323 | -9/Mines | Entered Materials 2323 | -8/Materials | Evolved 4 slots: Utility x4 3588 | -8/Materials | Discovered new exit (range 11) 3644 | -8/Materials | Core integrity fell below 50% 3670 | -8/Materials | Lost 5 parts (2n1u2w) 3700 | -8/Materials | Garrison activated, responded to threat 3720 | -8/Materials | Core integrity fell below 20% 3735 | -8/Materials | Destroyed by G-47 Trooper with Particle Gun Last Messages --------------- Y-45 Defender calls for garrison reinforcements. ALERT: Activating Garrison Access M001. Aluminum Leg destroyed. K-01 Serf collects debris. Minigun destroyed. Ion Engine destroyed. K-01 Serf collects debris. Aluminum Leg destroyed. K-01 Serf collects debris. Great Maul destroyed. K-01 Serf collects debris. Particle Gun destroyed. System corrupted by crushing effect (+2). System corrupted: Pulse Rifle targeting data glitched. Y-45 Defender destroyed. K-01 Serf collects debris. Acquired Beam Rifle. Emergency Access malfunctions. K-01 Serf collects debris. Pulse Rifle destroyed. Map ----- +----------------------------------------------------+ | ???????????????????????????????????????????????? | | ???????????????????????????????????????????????? | | ???????????????????????????????????????????????? | | ???????????????????????????????????????????????? | | ???????????????????????????????????????????????? | | ???????????????????????????????????????????????? | | ???????????????????????????????????????????????? | | ???????????????????????????????????????????????? | | ????????????????????????????????#####??????????? | | ????????????????????????????????# ??????????? | | ????????????????????????????????# ??????????? | | ????????????????????????????????# ??????????? | | ??????????Y?????????????????????+ #??????????? | | ????????????????????????????????# #??????????? | | ????????????+???????????????????# ###########? | | ????????????????????????????????# # """ """ #? | | ????????????????+???????????????# # """ """ #? | | ????????????????????????????????# # """ """ #? | | ???????????????????????????###### # ## | | ?????????????????????????? + %+ + | | ????????????############?? """# # ## | | ????????????# """ #? """# # ! #? | | ?????????????# "Y" #? """# #!%! #? | | ?????????????# """ # """# ##"########? | | ?????????????# """ # # ## #???????? | | ?????????????# """%@! # ## #???????? | | ?????????????# k #! # ## #???????? | | ?????????????# %% b # # ## #???????? | | ?????????????# gg #?######## ?# #???????? | | ???????####+######/############## ## #???????? | | ???????# ==! ## #???????? | | ???????# < % *=! ## #???????? | | ???????# ^ %=! ## #???????? | | ???????######+##### s^ #######?# #???????? | | ??????????????????# s #???????# #???????? | | ??????????????????# """s #?????### ###?????? | | ??????????????????# "G ####### #?????? | | ??????????????????# """ #?????? | | ??????????????????# #?????? | | ??????????????????# ! #?????? | | ??????????????????###T#### ####### #?????? | | ????????????????????###??# #?????#######?????? | | ?????????????????????????# #?????????????????? | | ????????????????+????????# +?????????????????? | | ?????????????????????????# #?????????????????? | | ?????????????????????????# #?????????????????? | | ????????????????+????????# #?????????????????? | | ?????????????????????????# #?????????????????? | | ?????????????????????????# #?????????????????? | | ?????????????????????????# #?????????????????? | +----------------------------------------------------+ Best States ------------- Heat Dissipation 31 Energy Generation 14 Energy Capacity 250 Matter Stores 300 Matter Capacity 300 Sight Range 16 Terrain Scan Density 10 Cloak Strength 5 Armor Coverage 150 Resistance: TH 10 Evasion (%) 40 Offensive Hacking 10 Item Schematics ----------------- None Robot Schematics ------------------ None Fabricated ------------ Nothing Alien Tech Used ----------------- None Achievements -------------- I Survived The Infestation Challenges ------------ None Game ------ Seed ArmorImprovedRailgun Manual? 0 Play Time 00:46:54 Cumulative 16.3 hours Start 2019.12.14 @ 22:48:05 End 2019.12.14 @ 23:46:11 Sessions 1 Manual Loads 0 Difficulty Rogue Special Mode None Game No. 23 Rogue 23 Adventurer 0 Explorer 0 Win Type - Total 0 Types 0/0/0/0/0/0/0 Lore% 9 Gallery% 16 Achievement% 14 Wizard Run 0 Options --------- ASCII 0 Keyboard 0 Movement Mouse Keybinds 0 Fullscreen 0 Font 32/SmallcapsGlow Map View 76x50 Tactical HUD 0 Map Filters NONE Filters NONE Steam 1 RUN: 09243264-6069-47b2-a701-b6073c4ec284